fUSD/lending_fUSD_20240506
["ID","MTS","AMOUNT","RATE_DAILY","PERIOD"]
[326486308,1714995033298,-1015.0,0.000156,2]
[326486310,1714995033308,-155.60564957,0.00016622,2]
[326486312,1714995033319,-267.06228984,0.00017252,2]
[326486314,1714995033331,-393.04020952,0.00017252,2]
[326486316,1714995033343,-4339.89750064,0.00017252,2]
[326486319,1714995033353,-1037.51160232,0.00017253,2]
[326486321,1714995033363,-4495.70582695,0.00017253,2]
[326486322,1714995033374,-392.26263285,0.00017259,2]
[326486325,1714995033384,-1162.33949075,0.00017259,2]
[326486327,1714995033394,-662.34,0.00017808,2]
[326486328,1714995033403,-155.60564957,0.00017901,2]
[326486331,1714995033416,-42107.8437,0.00018748,2]
[326486332,1714995033427,-499.99,0.00018748,2]
[326486334,1714995033437,-154.54111002,0.0001879,2]
[326486336,1714995033447,-163.03,0.00019178,2]
[326486338,1714995033457,-153.94,0.00019178,2]
[326486341,1714995033468,-155.60564957,0.00019181,2]
[326486343,1714995033478,-366.57771071,0.0002,2]
[326486345,1714995033488,-155.0,0.00020303,2]
[326486347,1714995033501,-167.57033928,0.00020304,2]
[326486349,1714995033511,-155.60564957,0.00020461,2]
[326486351,1714995033521,-155.0,0.000209,2]
[326486353,1714995033530,-604.98,0.00021028,2]
[326486355,1714995033540,-159.27,0.00021296,2]
[326486357,1714995033549,-632.56,0.00021326,2]
[326486358,1714995033559,-186.35,0.00021344,2]
[326486360,1714995033570,-250.0,0.00021395,2]
[326486362,1714995033579,-185.75,0.00021466,2]
[326486364,1714995033589,-3255.1,0.00021544,2]
[326486366,1714995033602,-172.08,0.00021574,2]
[326486368,1714995033613,-179.37,0.0002166,2]
[326486370,1714995033624,-155.60564957,0.00021741,2]
[326486373,1714995033634,-167.78,0.00021748,2]
[326486375,1714995033645,-175.33,0.00021827,2]
[326486376,1714995033654,-159.27,0.00021851,2]
[326486378,1714995033664,-250.0,0.00021918,2]
[326486381,1714995033676,-250.0,0.00021953,2]
[326486382,1714995033686,-159.27,0.00022406,2]
[326486384,1714995033696,-1500.0,0.000227,2]
[326486386,1714995033705,-155.60564957,0.0002302,2]
[326486388,1714995033716,-157.050619,0.00023198,2]
[326486390,1714995033726,-600.37289256,0.00023373,2]
[326486392,1714995033736,-17699.97824205,0.00023398,2]
[326486394,1714995033746,-4256.42521274,0.00023399,2]
[326486396,1714995033756,-2001.32534763,0.000234,2]
[326486399,1714995033765,-157.050619,0.00023498,2]
[326486401,1714995033776,-158.37392983,0.00023531,2]
[326486403,1714995033786,-604.98,0.00023656,2]
[326486404,1714995033796,-157.050619,0.00023798,2]
[326486407,1714995033807,-900.0,0.000239,8]
[326486409,1714995033817,-1561.26800831,0.00024054,2]
[326486411,1714995033826,-632.56,0.00024066,2]
[326486413,1714995033836,-3499.67939162,0.00024105,2]
[326486414,1714995033846,-157.050619,0.00024198,2]
[326486417,1714995033855,-169.38032808,0.000242,2]
[326486418,1714995033866,-1814.5685,0.000242,2]
[326486420,1714995033879,-198.29193829,0.00024273,2]
[326486423,1714995033890,-19649.4532,0.000243,2]
[326486425,1714995033905,-22425.7436,0.000243,2]
[326486427,1714995033916,-155.60564957,0.000243,2]
[326486429,1714995033926,-312.42114174,0.000243,2]
[326486431,1714995033936,-3000.0,0.00024371,2]
[326486433,1714995033947,-174.61,0.0002439,2]
[326486435,1714995033958,-151.75,0.0002439,2]
[326486437,1714995033968,-1051.95970687,0.00024398,2]
[326486439,1714995033979,-194.03200479,0.00024398,2]
[326486441,1714995033989,-235.99815367,0.00024398,2]
[326486443,1714995034001,-216.95036652,0.00024398,2]
[326486444,1714995034012,-2383.17623775,0.00024398,2]
[326486446,1714995034022,-155.25183309,0.00024398,2]
[326486448,1714995034035,-178.41932071,0.00024398,2]
[326486450,1714995034046,-291.05209246,0.00024398,2]
[326486452,1714995034058,-1061.17426456,0.00024398,2]
[326486454,1714995034069,-160.00483055,0.00024398,2]
[326486456,1714995034080,-351.2829076,0.00024398,2]
[326486458,1714995034091,-4034.02376225,0.00024398,2]
[326486460,1714995034102,-397.16117121,0.00024398,2]
[326486462,1714995034112,-193.07568298,0.00024398,2]
[326486464,1714995034127,-313.15633728,0.00024398,2]
[326486466,1714995034140,-213.74621754,0.00024399,2]
[326486469,1714995034150,-416.281889,0.00024399,2]
[326486471,1714995034160,-155.40861725,0.00024399,2]
[326486473,1714995034170,-1469.17632547,0.00024399,2]
[326486475,1714995034181,-241.61118296,0.00024399,2]
[326486477,1714995034191,-3042.76872809,0.00024399,2]
[326486479,1714995034202,-531.08204897,0.00024399,2]
[326486481,1714995034212,-500.0,0.00024399,2]
[326486483,1714995034222,-225.13615698,0.00024399,2]
[326486485,1714995034233,-614285.80904816,0.000244,6]
[326486487,1714995034243,-2214.0691653,0.000244,2]
[326486489,1714995034252,-157.050619,0.00024498,4]
[326486491,1714995034263,-1900.0,0.000245,8]
[326486493,1714995034273,-175.33,0.00024556,2]
[326486495,1714995034284,-10000.0,0.00024557,2]
[326486497,1714995034296,-7500.0,0.00024557,2]
[326486499,1714995034306,-160.24266439,0.00024557,2]
[326486501,1714995034316,-156.75428158,0.00024557,2]
[326486503,1714995034327,-200.20871114,0.00024557,2]
[326486505,1714995034337,-173.13322766,0.00024557,2]
[326486507,1714995034348,-198.29193827,0.00024565,2]
[326486509,1714995034359,-2800.0,0.000246,8]
[326486511,1714995034370,-4708.12629564,0.00024602,2]
[326486513,1714995034388,-500.0,0.00024657,2]
[326486515,1714995034398,-443.78973703,0.00024657,2]
[326486517,1714995034408,-1238.53,0.00024657,2]
[326486519,1714995034419,-502.59791543,0.00024657,2]
[326486521,1714995034429,-633.26,0.00024657,2]
[326486523,1714995034440,-582.62349635,0.00024657,2]
[326486526,1714995034451,-573.75,0.00024657,2]
[326486528,1714995034460,-502.33623469,0.00024657,2]
[326486530,1714995034470,-500.0,0.00024657,2]
[326486531,1714995034481,-585.57,0.00024657,2]
[326486534,1714995034491,-637.05,0.00024657,2]
[326486536,1714995034502,-891.96,0.00024657,2]
[326486538,1714995034512,-500.0,0.00024657,2]
[326486540,1714995034522,-519.94,0.00024657,2]
[326486542,1714995034531,-1020.68,0.00024657,2]
[326486544,1714995034541,-200.0,0.00024657,2]
[326486546,1714995034553,-1068.28,0.00024657,2]
[326486548,1714995034565,-800.26,0.00024657,2]
[326486550,1714995034575,-1011.04,0.00024657,2]
[326486552,1714995034585,-500.0,0.00024657,2]
[326486553,1714995034599,-504.94951883,0.00024657,2]
[326486554,1714995034611,-500.46,0.00024657,2]
[326486555,1714995034624,-505.22964356,0.00024657,2]
[326486556,1714995034637,-500.0,0.00024657,2]
[326486557,1714995034648,-500.0,0.00024657,2]
[326486558,1714995034658,-500.0,0.00024657,2]
[326486559,1714995034668,-500.0,0.00024657,2]
[326486560,1714995034679,-500.0,0.00024657,2]
[326486561,1714995034689,-505.54448087,0.00024657,2]
[326486562,1714995034699,-790.87,0.00024657,2]
[326486563,1714995034710,-505.3690569,0.00024657,2]
[326486564,1714995034720,-500.0,0.00024657,2]
[326486565,1714995034731,-873.44,0.00024657,2]
[326486566,1714995034741,-500.0,0.00024657,2]
[326486567,1714995034751,-500.0,0.00024657,2]
[326486568,1714995034761,-500.0,0.00024657,2]
[326486569,1714995034773,-500.0,0.00024657,2]
[326486570,1714995034783,-884.89,0.00024657,2]
[326486571,1714995034792,-500.0,0.00024657,2]
[326486572,1714995034810,-882.88,0.00024657,2]
[326486573,1714995034826,-1633.26,0.00024657,2]
[326486574,1714995034842,-1269.16,0.00024657,2]
[326486575,1714995034853,-1230.06,0.00024657,2]
[326486576,1714995034863,-632.7,0.00024657,2]
[326486577,1714995034875,-691.58,0.00024657,2]
[326486578,1714995034886,-1116.07,0.00024657,2]
[326486579,1714995034897,-687.02,0.00024657,2]
[326486580,1714995034909,-500.0,0.00024657,2]
[326486581,1714995034920,-500.0,0.00024657,2]
[326486582,1714995034930,-1459.94,0.00024657,2]
[326486583,1714995034940,-500.0,0.00024657,2]
[326486584,1714995034950,-1151.71,0.00024657,2]
[326486585,1714995034960,-500.0,0.00024657,2]
[326486586,1714995034971,-505.46398042,0.00024657,2]
[326486587,1714995034981,-500.0,0.00024657,2]
[326486588,1714995034991,-899.2,0.00024657,2]
[326486589,1714995035009,-500.0,0.00024657,2]
[326486590,1714995035026,-500.0,0.00024657,2]
[326486591,1714995035037,-500.0,0.00024657,2]
[326486592,1714995035047,-500.0,0.00024657,2]
[326486593,1714995035057,-500.0,0.00024657,2]
[326486594,1714995035066,-763.13,0.00024657,2]
[326486595,1714995035076,-781.97,0.00024657,2]
[326486596,1714995035086,-155.320269,0.00024657,7]
[326486597,1714995035095,-500.0,0.00024657,2]
[326486598,1714995035105,-506.60399952,0.00024657,2]
[326486599,1714995035115,-500.0,0.00024657,2]
[326486600,1714995035129,-507.16673072,0.00024657,2]
[326486601,1714995035138,-271.85691899,0.00024657,2]
[326486602,1714995035149,-223.82405893,0.00024657,2]
[326486603,1714995035159,-806.74,0.00024657,2]
[326486604,1714995035171,-1342.52,0.00024657,2]
[326486605,1714995035180,-500.0,0.00024657,2]
[326486606,1714995035191,-512.1809532,0.00024657,2]
[326486607,1714995035201,-500.0,0.00024657,2]
[326486608,1714995035212,-565.32944349,0.00024657,2]
[326486609,1714995035224,-896.35,0.00024657,2]
[326486610,1714995035235,-500.0,0.00024657,2]
[326486611,1714995035244,-991.5,0.00024657,2]
[326486612,1714995035254,-500.0,0.00024657,2]
[326486613,1714995035268,-1066.99,0.00024657,2]
[326486614,1714995035278,-740.27,0.00024657,2]
[326486615,1714995035289,-770.11,0.00024657,2]
[326486616,1714995035299,-501.26,0.00024657,2]
[326486617,1714995035308,-500.0,0.00024657,2]
[326486618,1714995035319,-1493.91,0.00024657,2]
[326486619,1714995035329,-500.0,0.00024657,2]
[326486620,1714995035340,-950.78,0.00024657,2]
[326486621,1714995035350,-500.0,0.00024657,2]
[326486622,1714995035360,-500.0,0.00024657,3]
[326486623,1714995035369,-500.0,0.00024657,4]
[326486624,1714995035382,-500.0,0.00024657,5]
[326486625,1714995035392,-500.0,0.00024657,2]
[326486626,1714995035402,-500.0,0.00024657,6]
[326486627,1714995035413,-500.0,0.00024657,7]
[326486628,1714995035424,-500.0,0.00024657,8]
[326486629,1714995035434,-500.0,0.00024657,9]
[326486630,1714995035445,-500.0,0.00024657,10]
[326486631,1714995035455,-500.0,0.00024657,11]
[326486632,1714995035466,-611.11,0.00024657,2]
[326486633,1714995035477,-192.32732635,0.00024657,2]
[326486634,1714995035487,-1003.39,0.00024657,2]
[326486635,1714995035498,-664.82,0.00024657,2]
[326486636,1714995035508,-503.80398022,0.00024657,2]
[326486637,1714995035517,-500.0,0.00024657,2]
[326486638,1714995035527,-995.22,0.00024657,2]
[326486639,1714995035536,-730.49,0.00024657,2]
[326486640,1714995035546,-503.70386504,0.00024657,2]
[326486641,1714995035555,-1083.25,0.00024657,2]
[326486642,1714995035565,-1328.69,0.00024657,2]
[326486643,1714995035575,-1069.47,0.00024657,2]
[326486644,1714995035585,-215.0308661,0.00024657,2]
[326486645,1714995035597,-500.0,0.00024657,2]
[326486646,1714995035609,-736.06,0.00024657,2]
[326486647,1714995035619,-500.0,0.00024657,2]
[326486648,1714995035631,-500.0,0.00024657,2]
[326486649,1714995035643,-567.56,0.00024657,2]
[326486650,1714995035653,-505.60884033,0.00024657,2]
[326486651,1714995035663,-500.0,0.00024657,2]
[326486652,1714995035673,-500.34203541,0.00024657,2]
[326486653,1714995035687,-836.53,0.00024657,2]
[326486654,1714995035698,-1186.92,0.00024657,2]
[326486655,1714995035708,-622.37,0.00024657,2]
[326486656,1714995035717,-500.0,0.00024657,2]
[326486657,1714995035727,-510.31,0.00024657,2]
[326486658,1714995035737,-500.79,0.00024657,2]
[326486659,1714995035747,-191.00482069,0.00024657,2]
[326486660,1714995035757,-500.0,0.00024657,2]
[326486661,1714995035767,-857.55,0.00024657,2]
[326486662,1714995035778,-535.29,0.00024657,2]
[326486663,1714995035788,-507.66514226,0.00024657,2]
[326486664,1714995035798,-500.0,0.00024657,2]
[326486665,1714995035808,-500.0,0.00024657,2]
[326486666,1714995035819,-596.49,0.00024657,2]
[326486667,1714995035830,-710.39,0.00024657,2]
[326486668,1714995035840,-500.0,0.00024657,2]
[326486669,1714995035850,-555.14823391,0.00024657,2]
[326486670,1714995035860,-504.44727944,0.00024657,2]
[326486671,1714995035869,-506.25094242,0.00024657,2]
[326486672,1714995035881,-500.0,0.00024657,2]
[326486673,1714995035891,-186.18769828,0.00024657,2]
[326486674,1714995035900,-500.0,0.00024657,2]
[326486675,1714995035910,-795.25,0.00024657,2]
[326486676,1714995036141,-500.0,0.00024657,2]
[326486677,1714995036151,-504.18548312,0.00024657,2]
[326486678,1714995036160,-505.72672105,0.00024657,2]
[326486679,1714995036169,-500.0,0.00024657,2]
[326486680,1714995036179,-500.0,0.00024657,2]
[326486681,1714995036188,-1568.77,0.00024657,2]
[326486682,1714995036198,-500.0,0.00024657,2]
[326486683,1714995036208,-510.81074904,0.00024657,2]
[326486684,1714995036218,-500.0,0.00024657,2]
[326486685,1714995036228,-500.0,0.00024657,2]
[326486686,1714995036238,-500.0,0.00024657,2]
[326486687,1714995036247,-500.0,0.00024657,2]
[326486688,1714995036257,-500.0,0.00024657,2]
[326486689,1714995036266,-500.0,0.00024657,2]
[326486690,1714995036277,-1716.04,0.00024657,2]
[326486691,1714995036286,-500.0,0.00024657,2]
[326486692,1714995036296,-715.38,0.00024657,2]
[326486693,1714995036307,-503.88869147,0.00024657,2]
[326486694,1714995036316,-1083.87,0.00024657,2]
[326486695,1714995036326,-1187.68,0.00024657,2]
[326486696,1714995036336,-503.78063635,0.00024657,2]
[326486697,1714995036345,-151.0,0.00024657,7]
[326486698,1714995036355,-500.0,0.00024657,2]
[326486699,1714995036364,-1269.97,0.00024657,2]
[326486700,1714995036374,-151.0,0.00024657,7]
[326486701,1714995036384,-696.21,0.00024657,2]
[326486702,1714995036396,-500.0,0.00024657,2]
[326486703,1714995036405,-500.0,0.00024657,2]
[326486704,1714995036415,-500.0,0.00024657,2]
[326486705,1714995036424,-500.0,0.00024657,2]
[326486706,1714995036433,-1313.41,0.00024657,2]
[326486707,1714995036443,-500.0,0.00024657,2]
[326486708,1714995036453,-2285.84,0.00024657,2]
[326486709,1714995036462,-804.77,0.00024657,2]
[326486710,1714995036472,-924.82,0.00024657,2]
[326486711,1714995036482,-590.22,0.00024657,2]
[326486712,1714995036491,-757.0,0.00024657,2]
[326486713,1714995036500,-711.79,0.00024657,2]
[326486714,1714995036510,-1296.11,0.00024657,2]
[326486715,1714995036519,-1979.12,0.00024657,2]
[326486716,1714995036528,-1089.18,0.00024657,2]
[326486717,1714995036538,-500.0,0.00024657,2]
[326486718,1714995036547,-500.0,0.00024657,2]
[326486719,1714995036556,-500.0,0.00024657,2]
[326486720,1714995036566,-1237.9,0.00024657,2]
[326486721,1714995036576,-612.70472228,0.00024657,2]
[326486722,1714995036585,-255.01783715,0.00024657,2]
[326486723,1714995036595,-915.94,0.00024657,2]
[326486724,1714995036608,-500.0,0.00024657,2]
[326486725,1714995036617,-2032.79,0.00024657,2]
[326486726,1714995036628,-1641.21,0.00024657,2]
[326486727,1714995036638,-500.0,0.00024657,2]
[326486728,1714995036648,-1243.26,0.00024657,2]
[326486729,1714995036657,-500.0,0.00024657,2]
[326486730,1714995036666,-500.0,0.00024657,2]
[326486731,1714995036676,-500.0,0.00024657,2]
[326486732,1714995036687,-500.0,0.00024657,2]
[326486733,1714995036696,-500.0,0.00024657,2]
[326486734,1714995036706,-500.0,0.00024657,2]
[326486735,1714995036715,-500.0,0.00024657,2]
[326486736,1714995036725,-524.49,0.00024657,2]
[326486737,1714995036735,-2048.35,0.00024657,2]
[326486738,1714995036745,-881.8,0.00024657,2]
[326486739,1714995036754,-500.0,0.00024657,2]
[326486740,1714995036764,-500.0,0.00024657,2]
[326486741,1714995036774,-540.88,0.00024657,2]
[326486742,1714995036785,-501.32431322,0.00024657,2]
[326486743,1714995036795,-1253.85,0.00024657,2]
[326486744,1714995036805,-1193.08,0.00024657,2]
[326486745,1714995036814,-505.99027006,0.00024657,2]
[326486746,1714995036824,-502.44177902,0.00024657,2]
[326486747,1714995036834,-1395.86,0.00024657,2]
[326486748,1714995036843,-506.98889475,0.00024657,2]
[326486749,1714995036852,-632.42,0.00024657,2]
[326486750,1714995036862,-501.81837771,0.00024657,2]
[326486751,1714995036873,-699.71,0.00024657,2]
[326486752,1714995036883,-500.0,0.00024657,2]
[326486753,1714995036892,-500.0,0.00024657,2]
[326486754,1714995036902,-506.54912898,0.00024657,2]
[326486755,1714995036911,-3355.89,0.00024657,2]
[326486756,1714995036921,-501.60770284,0.00024657,2]
[326486757,1714995036931,-1477.54,0.00024657,2]
[326486758,1714995036941,-718.63,0.00024657,2]
[326486759,1714995036950,-500.0,0.00024657,2]
[326486760,1714995036960,-500.0,0.00024657,2]
[326486761,1714995036969,-503.74206208,0.00024657,2]
[326486762,1714995036978,-822.02,0.00024657,2]
[326486763,1714995036988,-500.0,0.00024657,2]
[326486764,1714995036998,-1212.17,0.00024657,2]
[326486765,1714995037007,-806.01,0.00024657,2]
[326486766,1714995037016,-504.19407641,0.00024657,2]
[326486767,1714995037028,-503.87032278,0.00024657,2]
[326486768,1714995037038,-681.88,0.00024657,2]
[326486769,1714995037048,-500.0,0.00024657,2]
[326486770,1714995037058,-573.65,0.00024657,2]
[326486771,1714995037067,-1374.83,0.00024657,2]
[326486772,1714995037077,-500.0,0.00024657,2]
[326486773,1714995037087,-1518.87,0.00024657,2]
[326486774,1714995037096,-500.0,0.00024657,2]
[326486775,1714995037106,-3227.15,0.00024657,2]
[326486776,1714995037116,-500.0,0.00024657,2]
[326486777,1714995037129,-784.44,0.00024657,2]
[326486778,1714995037140,-500.0,0.00024657,2]
[326486779,1714995037150,-1458.11,0.00024657,2]
[326486780,1714995037160,-500.0,0.00024657,2]
[326486781,1714995037170,-500.0,0.00024657,2]
[326486782,1714995037180,-500.0,0.00024657,2]
[326486783,1714995037190,-500.0,0.00024657,2]
[326486784,1714995037199,-1341.68,0.00024657,2]
[326486785,1714995037209,-643.05,0.00024657,2]
[326486786,1714995037218,-500.0,0.00024657,2]
[326486787,1714995037227,-1196.46,0.00024657,2]
[326486788,1714995037237,-500.0,0.00024657,2]
[326486789,1714995037246,-500.0,0.00024657,2]
[326486790,1714995037256,-300.29530908,0.00024657,2]
[326486791,1714995037265,-504.57663732,0.00024657,2]
[326486792,1714995037275,-500.0,0.00024657,2]
[326486793,1714995037284,-508.47515582,0.00024657,2]
[326486794,1714995037294,-503.89098772,0.00024657,2]
[326486795,1714995037303,-1384.57,0.00024657,2]
[326486796,1714995037313,-556.27,0.00024657,2]
[326486797,1714995037322,-548.4,0.00024657,2]
[326486798,1714995037332,-500.0,0.00024657,2]
[326486799,1714995037342,-1845.66,0.00024657,2]
[326486800,1714995037351,-500.0,0.00024657,2]
[326486801,1714995037361,-801.12,0.00024657,2]
[326486802,1714995037371,-656.27,0.00024657,2]
[326486803,1714995037382,-500.0,0.00024657,2]
[326486804,1714995037392,-1727.36,0.00024657,2]
[326486805,1714995037402,-500.0,0.00024657,2]
[326486806,1714995037412,-973.58,0.00024657,2]
[326486807,1714995037421,-1573.95,0.00024657,2]
[326486808,1714995037430,-500.0,0.00024657,2]
[326486809,1714995037440,-1473.7,0.00024657,2]
[326486810,1714995037450,-572.48,0.00024657,2]
[326486811,1714995037459,-1144.98,0.00024657,2]
[326486812,1714995037468,-1529.27,0.00024657,2]
[326486813,1714995037478,-1379.19,0.00024657,2]
[326486814,1714995037488,-817.35,0.00024657,2]
[326486815,1714995037497,-500.0,0.00024657,2]
[326486816,1714995037508,-509.94499256,0.00024657,2]
[326486817,1714995037519,-502.14,0.00024657,2]
[326486818,1714995037529,-500.0,0.00024657,2]
[326486819,1714995037540,-590.09,0.00024657,2]
[326486820,1714995037550,-342.93751603,0.00024657,2]
[326486821,1714995037562,-1200.99,0.00024657,2]
[326486822,1714995037571,-1933.33,0.00024657,2]
[326486823,1714995037581,-1119.89,0.00024657,2]
[326486824,1714995037591,-500.0,0.00024657,2]
[326486825,1714995037605,-500.0,0.00024657,2]
[326486826,1714995037615,-565.76247957,0.00024657,2]
[326486827,1714995037627,-2359.54,0.00024657,2]
[326486828,1714995037637,-500.0,0.00024657,2]
[326486829,1714995037648,-1178.86,0.00024657,2]
[326486830,1714995037658,-525.92109396,0.00024657,2]
[326486831,1714995037667,-500.0,0.00024657,2]
[326486832,1714995037677,-506.12500188,0.00024657,2]
[326486833,1714995037686,-504.4866054,0.00024657,2]
[326486834,1714995037696,-500.0,0.00024657,2]
[326486835,1714995037705,-680.82,0.00024657,2]
[326486836,1714995037715,-500.0,0.00024657,2]
[326486837,1714995037724,-500.0,0.00024657,2]
[326486838,1714995037734,-500.0,0.00024657,2]
[326486839,1714995037744,-506.257405,0.00024657,2]
[326486840,1714995037754,-504.30244717,0.00024657,2]
[326486841,1714995037763,-1418.55,0.00024657,2]
[326486842,1714995037775,-500.0,0.00024657,2]
[326486843,1714995037784,-500.0,0.00024657,2]
[326486844,1714995037795,-1041.21,0.00024657,2]
[326486845,1714995037805,-151.0,0.00024657,7]
[326486846,1714995037815,-847.83,0.00024657,2]
[326486847,1714995037824,-500.0,0.00024657,2]
[326486848,1714995037834,-1295.7,0.00024657,2]
[326486849,1714995037844,-1432.98,0.00024657,2]
[326486850,1714995037853,-1111.45,0.00024657,2]
[326486851,1714995037863,-500.0,0.00024657,2]
[326486852,1714995037874,-224.886825,0.00024657,2]
[326486853,1714995037884,-500.0,0.00024657,2]
[326486854,1714995037893,-718.6,0.00024657,2]
[326486855,1714995037903,-500.0,0.00024657,2]
[326486856,1714995037913,-500.0,0.00024657,2]
[326486857,1714995037923,-504.70148977,0.00024657,2]
[326486858,1714995037933,-1583.44,0.00024657,2]
[326486859,1714995037943,-500.0,0.00024657,2]
[326486860,1714995037953,-230.29,0.00024657,2]
[326486861,1714995037963,-768.56,0.00024657,2]
[326486862,1714995037972,-504.24722133,0.00024657,2]
[326486863,1714995037982,-504.60443581,0.00024657,2]
[326486864,1714995037991,-1371.79,0.00024657,2]
[326486865,1714995038002,-1173.73,0.00024657,2]
[326486866,1714995038012,-500.0,0.00024657,2]
[326486867,1714995038022,-1895.65,0.00024657,2]
[326486868,1714995038032,-500.0,0.00024657,2]
[326486869,1714995038041,-500.0,0.00024657,2]
[326486870,1714995038051,-500.0,0.00024657,2]
[326486871,1714995038060,-500.0,0.00024657,2]
[326486872,1714995038070,-500.0,0.00024657,2]
[326486873,1714995038079,-500.0,0.00024657,2]
[326486874,1714995038088,-500.0,0.00024657,2]
[326486875,1714995038098,-500.0,0.00024657,2]
[326486876,1714995038108,-516.28,0.00024657,2]
[326486877,1714995038117,-585.28905683,0.00024657,2]
[326486878,1714995038128,-500.0,0.00024657,2]
[326486879,1714995038138,-691.04,0.00024657,2]
[326486880,1714995038148,-2105.03,0.00024657,2]
[326486881,1714995038157,-507.91376652,0.00024657,2]
[326486882,1714995038167,-1543.76,0.00024657,2]
[326486883,1714995038176,-500.0,0.00024657,2]
[326486884,1714995038186,-584.70230873,0.00024657,2]
[326486885,1714995038195,-500.0,0.00024657,2]
[326486886,1714995038205,-506.72298394,0.00024657,2]
[326486887,1714995038215,-987.45,0.00024657,2]
[326486888,1714995038225,-850.28,0.00024657,2]
[326486889,1714995038234,-500.0,0.00024657,2]
[326486890,1714995038244,-1123.95,0.00024657,2]
[326486891,1714995038254,-683.77,0.00024657,2]
[326486892,1714995038269,-500.0,0.00024657,2]
[326486893,1714995038280,-1913.9,0.00024657,2]
[326486894,1714995038290,-1748.34,0.00024657,2]
[326486895,1714995038300,-500.0,0.00024657,2]
[326486896,1714995038309,-688.01,0.00024657,2]
[326486897,1714995038319,-1246.53,0.00024657,2]
[326486898,1714995038329,-550.42,0.00024657,2]
[326486899,1714995038339,-500.0,0.00024657,2]
[326486900,1714995038349,-1134.32,0.00024657,2]
[326486901,1714995038359,-504.97522332,0.00024657,2]
[326486902,1714995038370,-505.12370716,0.00024657,2]
[326486903,1714995038382,-500.0,0.00024657,2]
[326486904,1714995038392,-578.71,0.00024657,2]
[326486905,1714995038402,-2316.67,0.00024657,2]
[326486906,1714995038411,-1131.14,0.00024657,2]
[326486907,1714995038421,-500.0,0.00024657,2]
[326486908,1714995038430,-536.02,0.00024657,2]
[326486909,1714995038440,-578.58,0.00024657,2]
[326486910,1714995038449,-505.35637204,0.00024657,2]
[326486911,1714995038459,-500.0,0.00024657,2]
[326486912,1714995038468,-500.0,0.00024657,2]
[326486913,1714995038478,-500.0,0.00024657,2]
[326486914,1714995038488,-2040.2,0.00024657,2]
[326486915,1714995038498,-1769.21,0.00024657,2]
[326486916,1714995038507,-501.73,0.00024657,2]
[326486917,1714995038521,-1625.89,0.00024657,2]
[326486918,1714995038530,-2016.04,0.00024657,2]
[326486919,1714995038540,-1203.34,0.00024657,2]
[326486920,1714995038549,-504.13808524,0.00024657,2]
[326486921,1714995038559,-504.71436015,0.00024657,2]
[326486922,1714995038568,-604.9,0.00024657,2]
[326486923,1714995038577,-2272.76,0.00024657,2]
[326486924,1714995038587,-500.0,0.00024657,2]
[326486925,1714995038597,-500.0,0.00024657,2]
[326486926,1714995038611,-500.0,0.00024657,2]
[326486927,1714995038621,-1333.72,0.00024657,2]
[326486928,1714995038632,-500.0,0.00024657,2]
[326486929,1714995038642,-735.93,0.00024657,2]
[326486930,1714995038653,-1896.89,0.00024657,2]